bitfinex/quotes_BTCUSD_20241117
["timestamp","ask_amount","ask_price","bid_price","bid_amount"]
[1731856029265,0.10171113,90383.0,90332.0,0.43316455]
[1731856029266,0.16606055,90358.0,90356.0,0.120673]
[1731856029470,0.15777235,90358.0,90357.0,0.120672]
[1731856029666,0.10171113,90383.0,90367.0,0.115659]
[1731856029894,0.10171113,90383.0,90367.0,0.22472155]
[1731856030094,0.10171113,90383.0,90371.0,0.005]
[1731856030331,0.10171113,90383.0,90372.0,0.00221283]
[1731856030534,0.0017108,90386.0,90374.0,0.221302]
[1731856030749,0.0017108,90386.0,90376.0,0.221297]
[1731856030951,0.0017108,90386.0,90378.0,0.110645]
[1731856031160,0.1123478,90386.0,90376.0,0.110647]
[1731856031391,0.16606055,90383.0,90371.0,0.005]
[1731856031528,0.10171113,90372.0,90363.0,0.005]
[1731856031747,0.10171113,90372.0,90369.0,0.16606055]
[1731856031748,0.21236513,90372.0,90369.0,0.16606055]
[1731856031941,0.21236513,90372.0,90363.0,0.005]
[1731856031942,0.10171113,90372.0,90363.0,0.005]
[1731856032137,0.10171113,90372.0,90370.0,0.005]
[1731856032357,0.110655,90371.0,90370.0,0.005]
[1731856032572,0.10171113,90372.0,90371.0,0.005]
[1731856032766,0.0458,90376.0,90371.0,0.005]
[1731856033183,0.0458,90376.0,90367.0,0.005]
[1731856033411,0.0458,90376.0,90369.0,0.005]
[1731856033412,0.110655,90371.0,90369.0,0.005]
[1731856033763,0.221302,90374.0,90359.0,0.10906255]
[1731856033974,0.221302,90374.0,90335.0,0.26777168]
[1731856034226,0.221302,90374.0,90249.0,0.005]
[1731856034473,0.04510874,90382.0,90257.0,0.0008559]
[1731856034474,0.210759,90286.0,90257.0,0.0008559]
[1731856034640,0.210759,90286.0,90260.0,0.005]
[1731856034861,0.210759,90286.0,90257.0,0.0008559]
[1731856035091,0.220759,90286.0,90257.0,0.0008559]
[1731856035322,0.26672623,90286.0,90257.0,0.0008559]
[1731856035498,0.36765144,90286.0,90257.0,0.0008559]
[1731856035706,0.220759,90286.0,90257.0,0.0008559]
[1731856035933,0.3676471,90286.0,90257.0,0.0008559]
[1731856036134,0.215759,90286.0,90257.0,0.0008559]
[1731856036345,0.215759,90286.0,90258.0,0.0022156]
[1731856036568,0.215759,90286.0,90259.0,0.00221546]
[1731856036777,0.215759,90286.0,90257.0,0.0008559]
[1731856036778,0.32482155,90286.0,90257.0,0.0008559]
[1731856036979,0.42275159,90286.0,90257.0,0.0008559]
[1731856037185,0.31982155,90286.0,90258.0,0.00221546]
[1731856037387,0.30868701,90286.0,90262.0,0.005]
[1731856037593,0.110759,90286.0,90262.0,0.005]
[1731856037952,0.110759,90286.0,90263.0,0.110786]
[1731856038150,0.110759,90286.0,90262.0,0.005]
[1731856038994,0.110759,90286.0,90264.0,0.16613963]
[1731856041500,0.221508,90290.0,90264.0,0.16613963]
[1731856041714,0.110759,90286.0,90264.0,0.16613963]
[1731856043239,0.321508,90290.0,90275.0,0.16613963]
[1731856043444,0.110758,90287.0,90275.0,0.16613963]
[1731856044304,0.19783373,90290.0,90275.0,0.16613963]
[1731856044530,0.110759,90286.0,90275.0,0.16613963]
[1731856045427,0.110759,90286.0,90264.0,0.16613963]
[1731856045642,0.110759,90286.0,90276.0,0.16613963]
[1731856049256,0.0008556,90287.0,90279.0,0.16613963]
[1731856049456,0.221518,90286.0,90279.0,0.16613963]
[1731856049678,0.110766,90280.0,90279.0,0.16613963]
[1731856050150,0.0008556,90287.0,90265.0,0.10906255]
[1731856050360,0.110765,90281.0,90274.0,0.16613963]
[1731856050739,0.221523,90284.0,90274.0,0.16613963]
[1731856051173,0.110763,90283.0,90274.0,0.16613963]
[1731856051306,0.110764,90282.0,90274.0,0.16613963]
[1731856051515,0.1116136,90287.0,90274.0,0.16613963]
[1731856051725,0.11076,90285.0,90274.0,0.16613963]
[1731856052155,0.110759,90286.0,90274.0,0.16613963]
[1731856052350,0.0008556,90287.0,90285.0,0.16613963]
[1731856052564,0.0008556,90287.0,90280.0,0.110766]
[1731856052766,0.0008556,90287.0,90281.0,0.00221504]
[1731856052969,0.0008556,90287.0,90282.0,0.110763]
[1731856053375,0.0008556,90287.0,90283.0,0.00221502]
[1731856053820,0.0008556,90287.0,90277.0,0.10906255]
[1731856054028,0.0008556,90287.0,90278.0,0.110768]
[1731856054255,0.0008556,90287.0,90283.0,0.110761]
[1731856054698,0.0008556,90287.0,90278.0,0.221537]
[1731856054896,0.0008556,90287.0,90284.0,0.11076]
[1731856055108,0.0008556,90287.0,90281.0,0.110764]
[1731856055312,0.0008556,90287.0,90279.0,0.221535]
[1731856055533,0.0008556,90287.0,90284.0,0.16613963]
[1731856055774,0.0008556,90287.0,90286.0,0.110759]
[1731856059190,0.1,90306.0,90283.0,0.002]
[1731856059400,0.1,90306.0,90284.0,0.10906255]
[1731856059606,0.1,90306.0,90291.0,0.110752]
[1731856059811,0.221471,90305.0,90285.0,0.16613963]
[1731856060026,0.110745,90297.0,90285.0,0.27520218]
[1731856060476,0.005,90307.0,90276.0,0.26744676]
[1731856060477,0.221471,90305.0,90276.0,0.221542]
[1731856060751,0.221471,90305.0,90274.0,0.16699533]
[1731856060752,0.221496,90295.0,90277.0,0.16613963]
[1731856061192,0.110761,90285.0,90277.0,0.16613963]
[1731856061415,0.11076,90286.0,90277.0,0.16613963]
[1731856061639,0.110754,90290.0,90277.0,0.27690863]
[1731856062277,0.110754,90290.0,90277.0,0.16613963]
[1731856062475,0.110754,90290.0,90278.0,0.110768]
[1731856063548,0.005,90275.0,90274.0,0.0008557]
[1731856063664,0.21983455,90275.0,90274.0,0.0008557]
[1731856064076,0.32282957,90275.0,90274.0,0.0008557]
[1731856064284,0.21983455,90275.0,90274.0,0.0008157]
[1731856064731,0.110776,90273.0,90247.0,0.221611]
[1731856065018,0.221515,90287.0,90269.0,0.110779]
[1731856065211,0.1,90286.0,90264.0,0.16613963]
[1731856065414,0.01030418,90285.0,90266.0,0.221567]
[1731856065651,0.110765,90281.0,90268.0,0.11078]
[1731856065850,0.01030418,90280.0,90268.0,0.11078]
[1731856066024,0.01030418,90279.0,90268.0,0.11078]
[1731856066208,0.01030418,90278.0,90268.0,0.11078]
[1731856066405,0.01030418,90277.0,90264.0,0.27520218]
[1731856066682,0.01030418,90276.0,90264.0,0.27520218]
[1731856066809,0.01030418,90275.0,90268.0,0.110781]
[1731856067054,0.01030418,90274.0,90268.0,0.110781]
[1731856067263,0.01030418,90273.0,90268.0,0.110781]
[1731856067475,0.01030418,90272.0,90268.0,0.110781]
[1731856067677,0.01030418,90271.0,90268.0,0.110781]
[1731856067878,0.01030418,90270.0,90268.0,0.110781]
[1731856068084,0.01030418,90269.0,90268.0,0.110781]
[1731856069777,0.01030418,90269.0,90268.0,0.1116367]
[1731856070196,0.01030418,90269.0,90268.0,0.0008557]
[1731856070620,0.01030418,90269.0,90268.0,0.1116367]
[1731856071345,0.01031537,90269.0,90268.0,0.1116367]
[1731856075005,0.01031537,90269.0,90268.0,0.0008557]
[1731856075246,0.01031537,90269.0,90268.0,0.1116367]
[1731856075457,0.221528,90282.0,90268.0,0.1116367]
[1731856075673,0.110767,90280.0,90268.0,0.1116367]
[1731856075937,0.11077,90278.0,90268.0,0.0008557]
[1731856076137,0.110767,90280.0,90268.0,0.1116357]
[1731856076611,0.110766,90281.0,90270.0,0.110778]
[1731856076847,0.110766,90280.0,90269.0,0.16613963]
[1731856077507,0.09840844,90278.0,90269.0,0.16613963]
[1731856078210,0.20917544,90279.0,90269.0,0.27691863]
[1731856078506,0.09840844,90273.0,90269.0,0.27691863]
[1731856078960,0.110767,90279.0,90269.0,0.27691863]
[1731856078961,0.09840844,90272.0,90269.0,0.16613963]
[1731856079396,0.09840844,90272.0,90268.0,0.1116367]
[1731856079397,0.36554868,90271.0,90268.0,0.1116367]
[1731856079620,0.36554868,90270.0,90269.0,0.110779]
[1731856079862,0.36554868,90270.0,90269.0,0.11078]
[1731856080079,0.19681688,90273.0,90269.0,0.11078]
[1731856080320,0.2460211,90277.0,90268.0,0.0008557]
[1731856080555,0.19808676,90273.0,90270.0,0.110778]
[1731856080779,0.36560936,90272.0,90269.0,0.110779]
[1731856081010,0.36560936,90271.0,90268.0,0.0008557]
[1731856081220,0.14856731,90269.0,90268.0,0.0008557]
[1731856081452,0.36560936,90270.0,90268.0,0.0008557]
[1731856081453,0.19808676,90272.0,90269.0,0.11078]
[1731856081671,0.36570055,90271.0,90269.0,0.11078]
[1731856081877,0.36570055,90270.0,90269.0,0.11078]
[1731856082328,0.0017114,90274.0,90269.0,0.11078]
[1731856082329,0.19808676,90273.0,90269.0,0.11078]
[1731856082550,0.36572119,90272.0,90269.0,0.11078]
[1731856082772,0.36572119,90271.0,90269.0,0.11078]
[1731856082982,0.19808676,90273.0,90269.0,0.11078]
[1731856083207,0.36572637,90272.0,90269.0,0.11078]
[1731856083433,0.0017114,90274.0,90269.0,0.11078]
[1731856083434,0.1486193,90270.0,90269.0,0.11078]
[1731856083665,0.0017114,90274.0,90269.0,0.11078]
[1731856083877,0.1486387,90270.0,90269.0,0.11078]
[1731856084106,0.19818494,90273.0,90272.0,0.110776]
[1731856084329,0.36581186,90273.0,90272.0,0.110776]
[1731856084537,0.0017114,90274.0,90273.0,0.110775]
[1731856084749,0.36762093,90274.0,90273.0,0.110775]
[1731856084969,0.0017114,90274.0,90273.0,0.110775]
[1731856085420,0.56590814,90274.0,90273.0,0.110775]
[1731856085645,0.36765389,90274.0,90273.0,0.110775]
[1731856087475,0.1504226,90274.0,90273.0,0.110775]
[1731856088370,0.0017114,90274.0,90273.0,0.110775]
[1731856089218,0.09922362,90274.0,90272.0,0.221552]
[1731856089424,0.09922362,90277.0,90272.0,0.221552]
[1731856089895,0.01033992,90276.0,90270.0,0.221555]
[1731856090124,0.09922362,90275.0,90271.0,0.110776]
[1731856090334,0.221526,90283.0,90270.0,0.110778]
[1731856090335,0.09922362,90277.0,90270.0,0.110778]
[1731856090549,0.01034271,90276.0,90271.0,0.110777]
[1731856090759,0.01034271,90276.0,90268.0,0.0008557]
[1731856090760,0.01034271,90275.0,90272.0,0.110775]
[1731856090978,0.01034271,90274.0,90272.0,0.110775]
[1731856091208,0.09922362,90278.0,90268.0,0.0008557]
[1731856091437,0.01034342,90277.0,90271.0,0.110777]
[1731856091645,0.01034342,90276.0,90273.0,0.110774]
[1731856091876,0.01034342,90275.0,90273.0,0.110774]
[1731856092084,0.20998762,90282.0,90273.0,0.110774]
[1731856092295,0.01034266,90281.0,90273.0,0.110774]
[1731856092517,0.11078,90269.0,90268.0,0.0008557]
[1731856092759,0.26854255,90269.0,90268.0,0.0008557]
[1731856092964,0.27888587,90269.0,90268.0,0.0008557]
[1731856094308,0.29543557,90269.0,90268.0,0.0008557]
[1731856094533,0.39457129,90269.0,90268.0,0.0008557]
[1731856094759,0.33128902,90269.0,90268.0,0.0008557]
[1731856095407,0.43041332,90269.0,90268.0,0.0008557]
[1731856095841,0.32135077,90269.0,90268.0,0.0008557]
[1731856096506,0.32133539,90269.0,90268.0,0.0008557]
[1731856097360,0.30478569,90269.0,90268.0,0.0008557]
[1731856097581,0.22222647,90269.0,90268.0,0.0008557]
[1731856098011,0.43039794,90269.0,90268.0,0.0008557]
[1731856098226,0.33128902,90269.0,90268.0,0.0008557]
[1731856098456,0.47997417,90269.0,90268.0,0.0008557]
[1731856098682,0.33128902,90269.0,90268.0,0.0008557]
[1731856099150,0.47997655,90269.0,90268.0,0.0008557]
[1731856099357,0.69720615,90269.0,90268.0,0.0008557]
[1731856099579,0.69720092,90269.0,90268.0,0.0008557]
[1731856099789,0.80220092,90269.0,90268.0,0.0008557]
[1731856100433,0.11081,90244.0,90243.0,0.0042341]
[1731856100640,0.2229588,90244.0,90243.0,0.0042341]
[1731856100859,0.43202135,90244.0,90243.0,0.0042341]
[1731856101073,0.45355313,90244.0,90243.0,0.0042341]
[1731856101291,0.45855313,90244.0,90243.0,0.0042341]
[1731856101506,0.82402385,90244.0,90243.0,0.0042341]
[1731856103370,0.86014915,90244.0,90243.0,0.0042341]
[1731856103577,0.64300815,90244.0,90243.0,0.0042341]
[1731856103791,0.49467843,90244.0,90243.0,0.0042341]
[1731856104025,0.64300625,90244.0,90243.0,0.0042341]
[1731856104223,0.38386843,90244.0,90243.0,0.0042341]
[1731856104457,0.46617089,90244.0,90243.0,0.0042341]
[1731856104694,0.59351267,90244.0,90243.0,0.0042341]
[1731856105364,0.57698089,90244.0,90243.0,0.0042341]
[1731856105635,0.47814665,90244.0,90243.0,0.0042341]
[1731856106783,0.49467843,90244.0,90243.0,0.0042341]
[1731856107004,0.59343792,90244.0,90243.0,0.0042341]
[1731856107456,0.47814665,90244.0,90243.0,0.0042341]
[1731856107914,0.47814665,90244.0,90220.0,0.0008552]
[1731856107915,0.110838,90221.0,90220.0,0.0008552]
[1731856108154,0.12118132,90221.0,90220.0,0.0008552]
[1731856109878,0.15802583,90221.0,90220.0,0.0008552]
[1731856111095,0.14768251,90221.0,90220.0,0.0008552]
[1731856111303,0.15794586,90221.0,90220.0,0.0008552]
[1731856112666,0.17436722,90221.0,90220.0,0.0008552]
[1731856114022,0.13752271,90221.0,90220.0,0.0008552]
[1731856114252,0.37458526,90221.0,90220.0,0.0008552]
[1731856114483,0.51078526,90221.0,90220.0,0.0008552]
[1731856114948,0.51078526,90221.0,90219.0,0.0008552]
[1731856114949,0.01,90220.0,90219.0,0.00061887]
[1731856115165,0.37009473,90220.0,90219.0,0.00061887]
[1731856115393,0.35851609,90220.0,90219.0,0.00061887]
[1731856115604,0.35658726,90220.0,90219.0,0.00061887]
[1731856117207,0.32990255,90220.0,90219.0,0.00061887]
[1731856117416,0.35657706,90220.0,90219.0,0.00061887]
[1731856117867,0.35157706,90220.0,90219.0,0.00061887]
[1731856119192,0.27457706,90220.0,90219.0,0.00061887]
[1731856119404,0.35157706,90220.0,90219.0,0.00061887]
[1731856120029,0.23751451,90220.0,90219.0,0.00061887]
[1731856121270,0.13751451,90220.0,90219.0,0.00061887]
[1731856121493,0.02667451,90220.0,90219.0,0.00061887]
[1731856121934,0.13751451,90220.0,90219.0,0.00061887]
[1731856122142,0.01025943,90220.0,90219.0,0.00061887]
[1731856122379,0.110837,90223.0,90219.0,0.00061887]
[1731856122602,0.25691012,90228.0,90219.0,0.11145987]
[1731856122603,0.01027505,90220.0,90219.0,0.11145987]
[1731856122784,0.110832,90226.0,90221.0,0.110838]
[1731856122955,0.13755457,90225.0,90219.0,0.11145987]
[1731856123161,0.02672057,90224.0,90219.0,0.11145987]
[1731856123335,0.02672057,90223.0,90219.0,0.11145987]
[1731856123545,0.02672057,90222.0,90219.0,0.00061887]
[1731856123819,0.02672057,90221.0,90220.0,0.110839]
[1731856124205,0.02672057,90221.0,90219.0,0.11145887]
[1731856124362,0.110836,90224.0,90219.0,0.11145887]
[1731856124363,0.02672057,90220.0,90219.0,0.11145887]
[1731856124828,0.02672057,90220.0,90219.0,0.00061887]
[1731856125259,0.13756057,90220.0,90219.0,0.00061887]
[1731856125626,0.02672057,90220.0,90219.0,0.00061887]
[1731856126010,0.221668,90225.0,90219.0,0.00061887]
[1731856126259,0.110839,90221.0,90219.0,0.00061887]
[1731856126523,0.02675294,90224.0,90219.0,0.00061887]
[1731856126524,0.02675294,90220.0,90219.0,0.00061887]
[1731856127316,0.02675294,90220.0,90219.0,0.11145987]
[1731856129268,0.02675294,90220.0,90219.0,0.19465987]
[1731856129484,0.01028959,90220.0,90219.0,0.19465987]
[1731856129711,0.02679644,90220.0,90219.0,0.19465987]
[1731856131182,0.02679644,90220.0,90219.0,0.4055279]
[1731856131599,0.01028959,90220.0,90219.0,0.4055279]
[1731856131850,0.01028959,90220.0,90219.0,0.4125279]
[1731856132063,0.16613963,90241.0,90240.0,0.110815]
[1731856132323,0.19298775,90241.0,90240.0,0.110815]
[1731856132550,0.02684812,90241.0,90240.0,0.110815]
[1731856133422,0.02684812,90241.0,90240.0,0.190615]
[1731856133599,0.0103262,90241.0,90240.0,0.190615]
[1731856134050,0.0103262,90241.0,90240.0,0.19283112]
[1731856134255,0.16613963,90260.0,90240.0,0.08201612]
[1731856134459,0.01650366,90259.0,90240.0,0.08201612]
[1731856134664,0.01650366,90258.0,90255.0,0.110796]
[1731856134887,0.110789,90261.0,90255.0,0.110796]
[1731856134888,0.01650366,90257.0,90255.0,0.110796]
[1731856135104,0.01650366,90257.0,90240.0,0.0798]
[1731856135105,0.01650366,90256.0,90240.0,0.0798]
[1731856135304,0.01650366,90255.0,90254.0,0.110798]
[1731856135512,0.221563,90268.0,90247.0,0.221612]
[1731856135723,0.02718364,90271.0,90247.0,0.00221593]
[1731856135724,0.01649701,90267.0,90247.0,0.00221593]
[1731856135939,0.110773,90275.0,90248.0,0.21086803]
[1731856136154,0.01649774,90273.0,90249.0,0.110804]
[1731856136332,0.01649774,90272.0,90267.0,0.110781]
[1731856136578,0.0008557,90274.0,90266.0,0.110782]
[1731856136796,0.12726086,90273.0,90266.0,0.110782]
[1731856137008,0.110779,90270.0,90263.0,0.110786]
[1731856137237,0.110784,90266.0,90250.0,0.10906255]
[1731856137459,0.01648479,90269.0,90261.0,0.16613963]
[1731856137683,0.0008557,90274.0,90250.0,0.10906255]
[1731856137684,0.01648479,90272.0,90250.0,0.10906255]
[1731856137895,0.110781,90268.0,90262.0,0.110787]
[1731856138105,0.221555,90271.0,90260.0,0.22158]
[1731856138314,0.221555,90271.0,90256.0,0.16613963]
[1731856138315,0.221555,90271.0,90261.0,0.221579]
[1731856138551,0.221555,90271.0,90257.0,0.221588]
[1731856138748,0.221555,90271.0,90247.0,0.03668963]
[1731856138749,0.005,90264.0,90244.0,0.16613963]
[1731856138960,0.110804,90250.0,90244.0,0.16613963]
[1731856139171,0.110804,90250.0,90244.0,0.27694963]
[1731856139372,0.01648479,90262.0,90244.0,0.16613963]
[1731856139585,0.1,90266.0,90244.0,0.16613963]
[1731856139586,0.1108,90253.0,90244.0,0.16613963]
[1731856139792,0.1108,90253.0,90245.0,0.110808]
[1731856140039,0.01648479,90264.0,90239.0,0.221631]
[1731856140040,0.221574,90263.0,90241.0,0.221628]
[1731856140249,0.10906255,90262.0,90242.0,0.16613963]
[1731856140479,0.110805,90249.0,90243.0,0.110811]
[1731856140705,0.221596,90254.0,90244.0,0.110809]
[1731856140880,0.221596,90255.0,90244.0,0.110809]
[1731856141104,0.110804,90250.0,90243.0,0.11081]
[1731856141793,0.110804,90250.0,90244.0,0.11081]
[1731856142015,0.16076372,90262.0,90244.0,0.22162]
[1731856142242,0.10906255,90261.0,90246.0,0.110807]
[1731856142480,0.1108,90253.0,90246.0,0.110807]
[1731856142698,0.110802,90251.0,90244.0,0.11081]
[1731856142912,0.110802,90251.0,90242.0,0.16613963]
[1731856143142,0.221595,90255.0,90242.0,0.16613963]
[1731856143376,0.110803,90250.0,90244.0,0.11081]
[1731856143579,0.03521638,90262.0,90244.0,0.11081]
[1731856143580,0.01646872,90262.0,90244.0,0.11127874]
[1731856143826,0.110782,90267.0,90260.0,0.11079]
[1731856144032,0.110782,90267.0,90245.0,0.10906255]
[1731856144033,0.16699533,90274.0,90249.0,0.10180548]
[1731856144266,0.11078,90269.0,90264.0,0.110785]
[1731856144670,0.11078,90269.0,90252.0,0.16613963]
[1731856144671,0.0008557,90274.0,90252.0,0.16613963]
[1731856144892,0.0008557,90274.0,90262.0,0.16613963]
[1731856145118,0.0008557,90274.0,90270.0,0.110778]
[1731856145347,0.0008557,90274.0,90253.0,0.10906255]
[1731856145580,0.0008557,90274.0,90263.0,0.16613963]
[1731856145794,0.110775,90273.0,90263.0,0.16613963]
[1731856146015,0.0008557,90274.0,90264.0,0.221572]
[1731856146240,0.02676175,90273.0,90270.0,0.110778]
[1731856146458,0.0008557,90274.0,90265.0,0.221569]
[1731856146459,0.01029298,90272.0,90265.0,0.221569]
[1731856146684,0.0008557,90274.0,90269.0,0.110779]
[1731856146685,0.01029298,90271.0,90269.0,0.110779]
[1731856146909,0.01029298,90270.0,90269.0,0.110779]
[1731856147329,0.01029298,90270.0,90268.0,0.11078]
[1731856147621,0.01029298,90269.0,90268.0,0.11078]
[1731856148453,0.0008557,90274.0,90266.0,0.0807]
[1731856148454,0.0008557,90274.0,90273.0,0.110775]
[1731856148654,0.01115186,90274.0,90273.0,0.110775]
[1731856149314,0.01647362,90282.0,90266.0,0.0807]
[1731856149553,0.03540258,90286.0,90266.0,0.0807]
[1731856149760,0.110769,90278.0,90272.0,0.110775]
[1731856150005,0.110782,90267.0,90266.0,0.0807]
[1731856150252,0.110782,90267.0,90260.0,0.03525132]
[1731856150253,0.110789,90261.0,90260.0,0.03525132]
[1731856150469,0.110789,90261.0,90236.0,0.0807]
[1731856150470,0.005,90259.0,90236.0,0.0807]
[1731856150706,0.215803,90250.0,90249.0,0.16613963]
[1731856150944,0.215803,90250.0,90239.0,0.16613963]
[1731856150945,0.110815,90240.0,90239.0,0.16613963]
[1731856151177,0.110814,90241.0,90240.0,0.16613963]
[1731856151384,0.110826,90231.0,90230.0,0.16613963]
[1731856151805,0.110826,90231.0,90219.0,0.00061887]
[1731856151806,0.005,90236.0,90219.0,0.00061887]
[1731856152047,0.11084,90220.0,90219.0,0.00061887]
[1731856153283,0.221672,90224.0,90219.0,0.00061887]
[1731856153453,0.110834,90225.0,90219.0,0.11145887]
[1731856153636,0.221641,90236.0,90219.0,0.00061887]
[1731856153839,0.110836,90223.0,90219.0,0.00061887]
[1731856154063,0.221648,90233.0,90219.0,0.00061887]
[1731856154320,0.11084,90220.0,90219.0,0.00061887]
[1731856154509,0.110838,90222.0,90219.0,0.00061887]
[1731856154716,0.11084,90220.0,90219.0,0.00061887]
[1731856155637,0.110838,90222.0,90219.0,0.00061887]
[1731856155844,0.221666,90226.0,90219.0,0.00061887]
[1731856156015,0.11084,90221.0,90219.0,0.00061887]
[1731856156657,0.110837,90223.0,90219.0,0.00061887]
[1731856156819,0.110838,90222.0,90219.0,0.00061887]
[1731856157016,0.221663,90227.0,90219.0,0.00061887]
[1731856157223,0.110838,90222.0,90219.0,0.00061887]
[1731856157514,0.30418374,90237.0,90219.0,0.11145887]
[1731856157737,0.30418374,90237.0,90219.0,0.00061887]
[1731856157738,0.110834,90225.0,90219.0,0.00061887]
[1731856157943,0.09870031,90253.0,90220.0,0.16613963]
[1731856157944,0.00692552,90248.0,90220.0,0.16613963]
[1731856158148,0.0486,90253.0,90229.0,0.110828]
[1731856158149,0.16613963,90242.0,90229.0,0.110828]
[1731856158347,0.16613963,90242.0,90226.0,0.110831]
[1731856158348,0.110824,90233.0,90226.0,0.110831]
[1731856158567,0.110821,90236.0,90229.0,0.110828]
[1731856158766,0.221631,90240.0,90229.0,0.110828]
[1731856159023,0.10906255,90246.0,90236.0,0.110819]
[1731856159024,0.55404,90246.0,90236.0,0.110819]
[1731856159244,0.0536,90253.0,90224.0,0.10906255]
[1731856159471,0.110815,90240.0,90234.0,0.110822]
[1731856159892,0.08950699,90253.0,90235.0,0.16613963]
[1731856159893,0.01648498,90239.0,90235.0,0.16613963]
[1731856160101,0.11081,90245.0,90238.0,0.110817]
[1731856160313,0.01648558,90244.0,90238.0,0.110817]
[1731856160540,0.01648558,90243.0,90226.0,0.221665]
[1731856160824,0.00692552,90251.0,90233.0,0.16613963]
[1731856161020,0.00692552,90251.0,90224.0,0.005]
[1731856161021,0.16613963,90265.0,90249.0,0.110804]
[1731856161229,0.16613963,90265.0,90242.0,0.221624]
[1731856161230,0.16613963,90255.0,90242.0,0.221624]
[1731856161438,0.10991845,90263.0,90236.0,0.221641]
[1731856161439,0.02679221,90254.0,90236.0,0.221641]
[1731856161640,0.02679221,90254.0,90234.0,0.10906255]
[1731856161641,0.110805,90249.0,90243.0,0.110811]
[1731856161845,0.01030462,90248.0,90244.0,0.110809]
[1731856162048,0.12111162,90247.0,90241.0,0.16613963]
[1731856162262,0.221599,90253.0,90234.0,0.10906255]
[1731856162263,0.11081,90245.0,90238.0,0.110817]
[1731856162479,0.221611,90249.0,90237.0,0.16613963]
[1731856162480,0.01030462,90244.0,90237.0,0.16613963]
[1731856162690,0.221611,90249.0,90234.0,0.10906255]
[1731856162691,0.01030462,90243.0,90234.0,0.10906255]
[1731856162991,0.221589,90258.0,90239.0,0.110816]
[1731856162992,0.01030565,90242.0,90239.0,0.110816]
[1731856163096,0.221589,90258.0,90241.0,0.110814]
[1731856163319,0.110806,90248.0,90241.0,0.110814]
[1731856163562,0.02679496,90247.0,90241.0,0.110814]
[1731856163762,0.02679496,90246.0,90235.0,0.10906255]
[1731856164005,0.221596,90254.0,90236.0,0.38778063]
[1731856164006,0.02679496,90245.0,90236.0,0.38778063]
[1731856164169,0.04411275,90247.0,90241.0,0.110813]
[1731856164341,0.110807,90247.0,90241.0,0.110813]
[1731856164585,0.25750854,90258.0,90241.0,0.110813]
[1731856164746,0.110808,90246.0,90241.0,0.110813]
[1731856164951,0.221601,90252.0,90241.0,0.110813]
[1731856165200,0.443182,90256.0,90239.0,0.110816]
[1731856165406,0.221591,90256.0,90240.0,0.110814]
[1731856165557,0.110808,90246.0,90238.0,0.221636]
[1731856165984,0.110808,90246.0,90241.0,0.110814]
[1731856166245,0.12729132,90248.0,90241.0,0.110814]
[1731856166578,0.110807,90247.0,90241.0,0.110814]
[1731856166778,0.110809,90245.0,90239.0,0.110816]
[1731856166971,0.110809,90245.0,90240.0,0.110815]
[1731856167433,0.221614,90247.0,90238.0,0.110817]
[1731856167632,0.15040548,90267.0,90217.0,0.005]
[1731856167633,0.01648887,90246.0,90217.0,0.005]
[1731856167865,0.23810687,90245.0,90234.0,0.16613963]
[1731856168066,0.110812,90243.0,90237.0,0.110819]
[1731856168265,0.221618,90245.0,90237.0,0.110819]
[1731856168470,0.01649385,90244.0,90237.0,0.110819]
[1731856168674,0.09883386,90262.0,90232.0,0.221649]
[1731856168675,0.110816,90240.0,90232.0,0.221649]
[1731856168903,0.110816,90240.0,90234.0,0.110822]
[1731856169128,0.221625,90243.0,90224.0,0.10906255]
[1731856169367,0.221625,90243.0,90232.0,0.110824]
[1731856169368,0.110818,90238.0,90232.0,0.110824]
[1731856169793,0.110816,90240.0,90234.0,0.110822]
[1731856170143,0.16613963,90252.0,90231.0,0.110825]
[1731856170385,0.11082,90237.0,90231.0,0.110825]
[1731856170596,0.221634,90239.0,90232.0,0.16613963]
[1731856170597,0.11082,90236.0,90232.0,0.16613963]
[1731856170799,0.03088377,90296.0,90232.0,0.16613963]
[1731856171013,0.16613963,90252.0,90225.0,0.221668]
[1731856171158,0.10680548,90259.0,90233.0,0.16613963]
[1731856171159,0.554015,90250.0,90233.0,0.16613963]
[1731856171357,0.01649328,90249.0,90233.0,0.16613963]
[1731856171567,0.110821,90236.0,90233.0,0.16613963]
[1731856171772,0.16613963,90255.0,90222.0,0.16613963]
[1731856172029,0.15040548,90245.0,90222.0,0.16613963]
[1731856172341,0.110832,90227.0,90222.0,0.16613963]
[1731856172542,0.15040548,90245.0,90222.0,0.16613963]
[1731856172543,0.110833,90226.0,90222.0,0.16613963]
[1731856172860,0.22166,90228.0,90222.0,0.16613963]
[1731856173084,0.22166,90228.0,90223.0,0.110836]
[1731856173085,0.110831,90228.0,90223.0,0.110836]
[1731856173277,0.110831,90227.0,90221.0,0.110838]
[1731856173586,0.16613963,90244.0,90219.0,0.00061887]
[1731856173587,0.11084,90220.0,90219.0,0.00061887]
[1731856176164,0.12114495,90220.0,90219.0,0.00061887]
[1731856178177,0.01030495,90220.0,90219.0,0.00061887]
[1731856178390,0.01030495,90220.0,90219.0,0.11145987]
[1731856178603,0.01648753,90232.0,90227.0,0.11083]
[1731856178810,0.01648753,90232.0,90219.0,0.00061887]
[1731856178811,0.13762835,90231.0,90221.0,0.221677]
[1731856179015,0.12114182,90230.0,90225.0,0.110833]
[1731856179216,0.12114182,90230.0,90221.0,0.221677]
[1731856179217,0.332457,90237.0,90227.0,0.110831]
[1731856179435,0.081856,90247.0,90220.0,0.22168]
[1731856179436,0.221628,90241.0,90220.0,0.22168]
[1731856179657,0.000856,90247.0,90227.0,0.0782]
[1731856179889,0.000856,90247.0,90232.0,0.110824]
[1731856179890,0.110818,90238.0,90232.0,0.110824]
[1731856180099,0.110818,90238.0,90227.0,0.299862]
[1731856180100,0.110817,90239.0,90233.0,0.110823]
[1731856180306,0.1,90245.0,90230.0,0.221655]
[1731856180537,0.332431,90244.0,90232.0,0.110825]
[1731856180748,0.110819,90237.0,90232.0,0.110825]
[1731856181578,0.221633,90239.0,90227.0,0.0782]
[1731856181832,0.221633,90239.0,90228.0,0.11083]
[1731856181833,0.11082,90237.0,90228.0,0.11083]
[1731856182042,0.11082,90237.0,90231.0,0.110826]
[1731856182289,0.221621,90244.0,90233.0,0.110824]
[1731856182507,0.221623,90243.0,90233.0,0.110824]
[1731856182711,0.110818,90238.0,90233.0,0.110824]